bitfinex-derivatives/quotes_ETHF0:USTF0_20250104
["timestamp","ask_amount","ask_price","bid_price","bid_amount"]
[1735980452671,0.27875,3588.6,3588.5,3.2078]
[1735980454169,0.27876,3588.5,3588.4,0.9121]
[1735980454368,0.27878,3588.3,3588.1,0.9093]
[1735980454564,0.27878,3588.2,3588.1,0.9219]
[1735980455372,2.12098404,3588.2,3588.0,3.2078]
[1735980455572,0.27879,3588.1,3588.0,3.2078]
[1735980455969,1.15669,3588.1,3588.0,3.2078]
[1735980457679,0.27879,3588.1,3588.0,3.2078]
[1735980462572,0.27711073,3588.1,3588.0,3.2078]
[1735980462972,2.01261073,3588.1,3588.0,3.2078]
[1735980463477,2.01261073,3588.1,3587.3,4.35578087]
[1735980463478,0.27883,3587.6,3587.5,3.2078]
[1735980463688,2.39981404,3587.6,3587.5,3.2078]
[1735980464172,0.27883,3587.6,3587.5,3.2078]
[1735980466379,2.39981404,3587.6,3587.5,3.2078]
[1735980469481,2.12098404,3587.6,3587.2,0.858]
[1735980469677,0.27885,3587.3,3587.2,0.858]
[1735980471578,0.27887,3587.0,3586.7,3.48669]
[1735980471780,0.27887,3587.0,3586.8,1.7499]
[1735980474278,0.27887,3587.0,3586.8,2.02878]
[1735980474583,0.27886,3587.1,3586.8,1.7499]
[1735980474782,0.27888,3587.0,3586.8,1.7499]
[1735980474990,6.69478211,3587.9,3586.8,1.7499]
[1735980475180,0.27886,3587.2,3587.0,0.27887]
[1735980475888,2.12098404,3587.2,3586.8,1.7499]
[1735980476088,0.27888,3587.0,3586.8,1.7499]
[1735980476384,0.27888,3586.9,3586.8,1.7499]
[1735980477287,0.27888,3587.0,3586.8,2.02878]
[1735980477681,0.27888,3586.9,3586.8,1.7499]
[1735980477985,0.8707,3587.1,3586.8,2.02879]
[1735980477986,0.27888,3587.0,3586.8,2.02879]
[1735980478479,0.27887,3587.1,3586.8,1.7499]
[1735980479281,0.27887,3587.1,3586.9,0.27888]
[1735980479983,2.12098404,3587.2,3586.8,1.7499]
[1735980480286,2.39984404,3587.2,3587.0,0.27887]
[1735980480486,0.27886,3587.1,3586.9,0.27887]
[1735980481581,0.27886,3587.1,3586.8,2.02878]
[1735980481789,0.27886,3587.1,3586.9,0.27888]
[1735980482379,0.27887,3587.0,3586.8,2.02878]
[1735980482582,0.27887,3587.1,3586.9,0.27888]
[1735980484284,0.27887,3587.1,3586.8,1.7499]
[1735980484493,0.27886,3587.1,3586.8,2.02878]
[1735980484685,2.12098404,3587.2,3586.8,1.7499]
[1735980484880,0.27887,3587.0,3586.8,1.7499]
[1735980485486,0.27888,3586.9,3586.8,1.7499]
[1735980487588,0.27888,3586.9,3586.8,0.8768]
[1735980488489,0.21898811,3587.8,3586.9,0.69721]
[1735980488689,2.12098404,3587.7,3587.5,3.2078]
[1735980488888,2.39980404,3587.7,3587.6,0.8828]
[1735980489089,2.12098404,3587.7,3587.6,1.16162]
[1735980489287,2.39980404,3587.7,3587.6,0.8828]
[1735980491692,0.27885,3587.3,3587.2,0.9026]
[1735980492991,0.27885,3587.3,3587.2,1.7697]
[1735980493392,2.12098404,3587.4,3587.2,1.7697]
[1735980493591,0.27884,3587.4,3587.2,2.04855]
[1735980494494,0.27885,3587.3,3587.2,1.7697]
[1735980494999,0.27885,3587.3,3587.2,2.04856]
[1735980496099,0.27884,3587.4,3587.2,2.04856]
[1735980496291,0.27885,3587.3,3587.2,2.04856]
[1735980496490,0.27884,3587.4,3587.2,2.04856]
[1735980497092,1.7652,3587.6,3587.2,1.7697]
[1735980497292,0.27885,3587.3,3587.2,1.7697]
[1735980497997,5.37850892,3587.8,3587.2,2.04856]
[1735980498292,0.27884,3587.4,3587.2,1.7697]
[1735980498497,0.27884,3587.4,3587.3,0.27885]
[1735980501898,5.42731296,3587.7,3587.6,0.27882]
[1735980502292,8.69814837,3587.7,3587.6,0.27882]
[1735980502489,3.27083541,3587.7,3587.6,0.27882]
[1735980503303,3.54965541,3587.7,3587.5,0.27883]
[1735980503495,3.54965541,3587.7,3587.4,0.27884]
[1735980503696,3.27083541,3587.7,3587.6,0.27882]
[1735980503895,5.73217472,3587.7,3587.5,0.27883]
[1735980504098,2.18251931,3587.7,3587.3,0.8946]
[1735980504295,0.27883,3587.6,3587.3,0.8946]
[1735980504695,0.27883,3587.6,3587.5,0.27883]
[1735980504898,2.46133931,3587.7,3587.5,0.27883]
[1735980505392,2.46133931,3587.7,3587.6,0.8681]
[1735980506702,3.54965541,3587.7,3587.6,0.8681]
[1735980507100,5.39181945,3587.7,3587.3,4.35578087]
[1735980507299,0.27883,3587.5,3587.3,5.22388087]
[1735980507500,1.17184,3587.4,3587.3,5.22388087]
[1735980508101,3.35423704,3587.4,3587.3,0.8681]
[1735980509002,0.27885,3587.3,3587.2,4.35578087]
[1735980509203,1.17165,3587.3,3587.2,4.35578087]
[1735980509600,0.27886,3587.2,3587.1,7.56358087]
[1735980511602,2.1830552,3587.3,3587.2,0.27886]
[1735980512402,2.4618952,3587.4,3587.3,0.27885]
[1735980513108,2.4618952,3587.4,3587.2,4.35578087]
[1735980513408,0.27885,3587.3,3587.2,4.35578087]
[1735980513708,0.27885,3587.3,3587.2,4.63464087]
[1735980514006,3.27083541,3587.5,3587.2,4.35578087]
[1735980514204,0.27884,3587.4,3587.2,4.63463087]
[1735980514401,0.27885,3587.3,3587.2,4.63463087]
[1735980514600,0.27885,3587.3,3587.2,4.35578087]
[1735980514901,0.27885,3587.3,3587.2,4.63464087]
[1735980516215,2.46197727,3587.3,3587.2,4.63464087]
[1735980516898,2.18312727,3587.3,3587.2,4.63464087]
[1735980518300,0.81552727,3587.3,3587.2,4.63464087]
[1735980518909,0.27882,3587.7,3587.2,4.43553301]
[1735980519105,0.27882,3587.7,3587.6,0.27882]
[1735980519604,0.27882,3587.7,3587.6,1.11762]
[1735980520810,3.54964541,3587.8,3587.6,1.11762]
[1735980521010,0.27882,3587.7,3587.6,0.8388]
[1735980521414,0.27882,3587.7,3587.6,1.664]
[1735980522009,3.54964541,3587.8,3587.6,1.664]
[1735980522506,3.27083541,3587.8,3587.6,1.664]
[1735980522705,3.27083541,3587.8,3587.7,3.48662]
[1735980524013,0.2788,3588.0,3587.8,0.2788]
[1735980524706,3.27083541,3588.1,3588.0,0.27879]
[1735980525204,3.27083541,3588.2,3588.0,0.27879]
[1735980525598,3.27083541,3588.2,3588.1,0.854]
[1735980526212,3.54961541,3588.2,3588.1,0.854]
[1735980526801,0.2788,3587.9,3587.8,4.38333832]
[1735980527009,2.12098404,3588.3,3587.8,6.57686999]
[1735980527216,0.27878,3588.2,3587.9,0.27879]
[1735980527410,0.27878,3588.2,3587.9,0.2788]
[1735980527605,2.12098404,3588.3,3587.8,6.85566999]
[1735980527810,0.2788,3588.0,3587.8,6.85567999]
[1735980528010,0.2788,3588.0,3587.8,4.66016761]
[1735980529016,5.39181945,3588.3,3587.8,4.38135761]
[1735980529217,0.2788,3587.9,3587.7,8.44825761]
[1735980529410,0.27881,3587.8,3587.7,8.44825761]
[1735980530803,3.27083541,3588.2,3587.7,8.44825761]
[1735980531012,0.27879,3588.1,3587.7,8.72706761]
[1735980531223,3.27083541,3588.2,3587.7,8.72706761]
[1735980531516,0.27881,3587.8,3587.7,8.72706761]
[1735980532115,0.27881,3587.8,3587.7,8.44825761]
[1735980538417,0.27881,3587.8,3587.7,4.0669]
[1735980541122,1.7237,3588.1,3587.7,8.44825761]
[1735980541123,0.2788,3588.0,3587.7,8.44825761]
[1735980541316,1.7237,3588.1,3587.7,8.44825761]
[1735980541617,0.2788,3587.9,3587.7,8.72706761]
[1735980541822,1.7237,3588.1,3587.7,8.72706761]
[1735980541823,0.27881,3587.8,3587.7,8.44825761]
[1735980542117,1.7237,3588.1,3587.7,8.44825761]
[1735980542324,0.2788,3588.0,3587.8,0.2788]
[1735980542619,3.27083541,3588.2,3587.8,1.089]
[1735980542920,0.27878,3588.0,3587.9,0.27879]
[1735980543113,0.8817,3588.1,3587.7,8.44825761]
[1735980543308,0.27879,3587.8,3587.7,8.44825761]
[1735980544108,0.27879,3587.8,3587.7,7.58915761]
[1735980544623,0.27879,3587.9,3587.7,7.86795761]
[1735980544921,0.8817,3588.1,3587.7,7.86795761]
[1735980544922,0.27879,3587.8,3587.7,7.86795761]
[1735980545914,0.8817,3588.1,3587.7,7.86795761]
[1735980545915,0.27879,3587.9,3587.7,7.86795761]
[1735980546115,0.27878,3588.0,3587.8,0.27879]
[1735980546312,3.27083541,3588.3,3587.8,0.27879]
[1735980546515,3.27083541,3588.3,3588.2,0.27876]
[1735980546717,3.54958541,3588.3,3588.2,0.27876]
[1735980546918,3.27083541,3588.3,3588.2,0.27876]
[1735980547328,0.27875,3588.4,3588.2,4.66011761]
[1735980548720,0.27875,3588.3,3588.2,4.38135761]
[1735980549620,0.9102,3588.6,3588.2,7.58915761]
[1735980549813,0.9102,3588.6,3588.3,0.27875]
[1735980549814,0.27874,3588.5,3588.3,0.27875]
[1735980550024,1.11274,3588.5,3588.3,0.27875]
[1735980550320,1.11274,3588.5,3588.4,0.8229]
[1735980550519,0.834,3588.5,3588.4,0.8229]
[1735980551320,0.834,3588.5,3588.4,1.10165]
[1735980551521,0.9102,3588.6,3588.5,0.27874]
[1735980551927,1.18894,3588.6,3588.4,0.8229]
[1735980553129,1.18894,3588.6,3588.4,1.10165]
[1735980553523,0.9102,3588.6,3588.4,0.8229]
[1735980553737,1.17284,3588.5,3588.4,0.8229]
[1735980561332,0.27874,3588.5,3588.4,0.8229]
[1735980562038,0.27875,3588.3,3588.2,8.89347863]
[1735980562633,0.9178,3588.4,3588.2,8.89347863]
[1735980562634,3.96759541,3589.0,3588.3,0.27875]
[1735980562834,1.02556102,3588.7,3588.3,0.27875]
[1735980563032,0.27875,3588.4,3588.2,4.51212102]
[1735980563232,0.27875,3588.3,3588.2,3.2078]
[1735980563431,1.30431102,3588.3,3588.2,3.2078]
[1735980564835,4.57514643,3588.3,3588.2,3.2078]
[1735980565932,5.50834643,3588.3,3588.2,3.2078]
[1735980566134,3.9678599,3588.3,3588.2,3.2078]
[1735980566327,6.6258599,3588.3,3588.2,3.2078]
[1735980566533,0.27878,3588.0,3587.8,0.867]
[1735980567736,6.3471099,3588.3,3587.8,0.867]
[1735980567933,0.27877,3588.2,3587.9,0.27878]
[1735980569331,3.27083541,3588.4,3587.8,5.24697849]
[1735980569639,0.27876,3588.3,3588.1,3.2078]
[1735980569845,3.27083541,3588.4,3588.1,3.2078]
[1735980570033,0.27876,3588.2,3588.1,3.2078]
[1735980571134,0.27876,3588.2,3588.1,4.1394]
[1735980571342,0.27876,3588.2,3588.1,0.9316]
[1735980571934,3.54957541,3588.5,3588.2,0.27876]
[1735980572136,3.27083541,3588.5,3588.3,0.8798]
[1735980572334,3.54957541,3588.5,3588.3,0.8798]
[1735980572536,0.27875,3588.4,3588.3,0.8798]
[1735980573040,0.9365,3588.6,3588.2,4.37997849]
[1735980573241,2.09145,3588.3,3588.2,4.37997849]
[1735980574446,2.09145,3588.3,3588.1,10.71626999]
[1735980574447,0.27876,3588.2,3588.1,4.1394]
[1735980574652,1.16616,3588.2,3588.1,4.1394]
[1735980575133,0.27876,3588.2,3588.1,4.1394]
[1735980575340,3.27083541,3588.5,3588.1,4.1394]
[1735980575341,0.27875,3588.4,3588.2,0.27876]
[1735980576331,0.27876,3588.3,3588.1,4.41817]
[1735980576535,0.27876,3588.3,3588.1,8.79814849]
[1735980576932,0.27876,3588.2,3588.1,8.79814849]
[1735980577134,0.27876,3588.3,3588.1,8.79814849]
[1735980578242,0.27876,3588.3,3588.2,4.37997849]
[1735980584040,0.27876,3588.3,3588.2,5.24277849]
[1735980585142,0.27876,3588.3,3588.2,0.8628]
[1735980586244,0.27876,3588.3,3588.2,5.24277849]
[1735980587543,0.27876,3588.3,3588.2,5.33127688]
[1735980587741,0.27876,3588.3,3588.2,5.61003688]
[1735980587941,0.27876,3588.3,3588.2,4.74723688]
[1735980588146,0.27876,3588.3,3588.2,4.46847688]
[1735980588846,0.27877,3588.2,3588.0,9.35079377]
[1735980589046,1.20906,3588.3,3588.2,0.27876]
[1735980590249,0.9303,3588.3,3588.1,9.78466999]
[1735980590552,0.27876,3588.2,3588.1,10.64386999]
[1735980591554,0.27876,3588.2,3588.1,8.53668057]
[1735980592452,0.27876,3588.2,3588.1,8.81545057]
[1735980592642,0.27876,3588.2,3588.1,15.39232056]
[1735980592842,0.27876,3588.2,3588.1,11.04655056]
[1735980593050,0.27876,3588.2,3588.1,11.90985056]
[1735980593951,0.27876,3588.2,3588.1,12.18862056]
[1735980594147,0.9303,3588.3,3588.1,15.11765056]
[1735980594356,3.27083541,3588.4,3588.3,0.27875]
[1735980594654,3.54958541,3588.4,3588.3,0.27875]
[1735980595048,0.27875,3588.3,3588.2,0.27876]
[1735980595243,1.15985,3588.3,3588.2,0.27876]
[1735980595948,3.27083541,3588.7,3588.1,14.09832744]
[1735980596144,0.27876,3588.3,3588.1,14.09832744]
[1735980596349,0.27876,3588.3,3588.2,11.04766864]
[1735980596654,0.27876,3588.3,3588.2,11.32642864]
[1735980598450,0.27876,3588.3,3588.2,11.04766864]
[1735980600353,0.27876,3588.3,3588.2,11.32642864]
[1735980600565,3.27083541,3588.4,3588.3,0.27875]
[1735980600753,3.27083541,3588.4,3588.3,1.30447378]
[1735980601058,3.27083541,3588.4,3588.3,1.02572378]
[1735980601360,0.27875,3588.3,3588.2,4.66401611]
[1735980601661,0.27875,3588.3,3588.2,6.85625953]
[1735980602253,0.27875,3588.4,3588.2,6.85625953]
[1735980602455,0.27875,3588.4,3588.3,0.27875]
[1735980602658,0.27875,3588.4,3588.2,6.85625953]
[1735980603060,0.27875,3588.4,3588.2,0.27876]
[1735980603261,0.27875,3588.3,3588.2,0.27876]
[1735980603961,0.27875,3588.3,3588.2,4.74954963]
[1735980604162,0.27875,3588.3,3588.2,4.47078963]
[1735980605252,1.21785,3588.3,3588.2,4.47078963]
[1735980605555,1.21785,3588.3,3588.2,8.85660862]
[1735980606670,1.21785,3588.3,3588.2,4.47078963]
[1735980608266,0.27876,3588.2,3588.1,7.59400564]
[1735980608576,2.20688378,3588.2,3588.1,7.59400564]
[1735980609273,0.41825901,3588.3,3588.1,7.59400564]
[1735980609474,0.69701901,3588.3,3588.1,8.89849942]
[1735980609673,0.27876,3588.3,3588.2,0.932]
[1735980611372,3.55183569,3588.3,3588.2,0.932]
[1735980612376,0.27876,3588.2,3588.1,4.38620564]
[1735980612878,0.27877,3588.1,3588.0,8.36849953]
[1735980613178,1.17367,3588.1,3588.0,8.36849953]
[1735980613771,2.03447,3588.1,3588.0,8.36849953]
[1735980613977,2.03447,3588.1,3588.0,6.2637953]
[1735980614873,2.03447,3588.1,3588.0,4.4727953]
[1735980616582,5.30754569,3588.1,3588.0,11.05029483]
[1735980618483,2.03447,3588.1,3588.0,11.05029483]
[1735980625187,0.27877,3588.1,3588.0,11.05029483]
[1735980626283,0.27877,3588.1,3588.0,11.96829483]
[1735980633989,0.27877,3588.1,3588.0,11.05029483]
[1735980634896,2.10117,3588.1,3588.0,11.05029483]
[1735980635096,0.27877,3588.1,3588.0,11.05029483]
[1735980635302,3.27307569,3588.2,3588.0,11.94889483]
[1735980635501,3.27307569,3588.2,3588.1,5.14822378]
[1735980635895,4.31638957,3588.4,3588.3,0.27875]
[1735980636205,4.31638957,3588.4,3588.3,1.30447378]
[1735980636500,4.31638957,3588.5,3588.4,0.27875]
[1735980636702,4.31638957,3588.5,3588.4,2.20867378]
[1735980637202,0.27874,3588.5,3588.4,2.20867378]
[1735980637794,1.21903,3588.6,3588.4,24.51389682]
[1735980637997,1.21903,3588.6,3588.5,3.2078]
[1735980638805,1.21903,3588.6,3588.5,7.6805953]
[1735980639098,1.21903,3588.6,3588.5,7.9593353]
[1735980639305,1.21903,3588.6,3588.5,7.6805953]
[1735980640008,1.21903,3588.6,3588.5,14.25622123]
[1735980641804,0.8945,3588.7,3588.5,14.25622123]
[1735980642001,0.8945,3588.7,3588.6,1.30445378]
[1735980642198,0.8945,3588.7,3588.6,0.27873]
[1735980642404,0.8945,3588.7,3588.6,1.30445378]
[1735980642706,1.17322,3588.7,3588.6,1.30445378]
[1735980643607,0.8945,3588.7,3588.6,1.30445378]
[1735980643811,3.08840914,3588.8,3588.7,0.27872]
[1735980644107,2.18350914,3588.8,3588.7,0.27872]
[1735980645304,2.18350914,3588.9,3588.7,5.31589806]
[1735980645507,2.18350914,3588.9,3588.8,2.16854378]
[1735980646104,2.18350914,3588.9,3588.8,3.25854378]
[1735980646717,2.18350914,3589.3,3589.2,0.27869]
[1735980647017,2.18350914,3589.3,3589.2,4.51221378]
[1735980647909,3.07160914,3589.3,3589.2,4.51221378]
[1735980648408,0.8881,3589.3,3589.2,8.6119594]
[1735980648710,0.8881,3589.3,3589.2,7.58623562]
[1735980648918,1.16678,3589.3,3589.2,7.58623562]
[1735980649208,3.10180378,3589.3,3589.2,4.37843562]
[1735980649409,42.87608,3589.3,3589.2,4.37843562]
[1735980650210,0.27871,3588.9,3588.8,3.2078]
[1735980650713,1.30443378,3588.9,3588.8,3.2078]
[1735980652312,0.27871,3588.9,3588.8,3.2078]
[1735980652511,1.22781,3588.9,3588.8,3.2078]
[1735980652707,0.27871,3588.9,3588.8,3.2078]
[1735980658315,4.01540914,3589.0,3588.4,3.2078]
[1735980658518,4.01540914,3589.0,3588.4,3.48655]
[1735980658815,0.27874,3588.7,3588.4,3.48655]
[1735980659419,0.27874,3588.7,3588.4,3.2078]
[1735980659618,4.01540914,3589.0,3588.4,3.2078]
[1735980659815,0.27874,3588.6,3588.4,3.48655]
[1735980660217,0.27874,3588.6,3588.5,0.27874]
[1735980660416,0.27874,3588.6,3588.4,3.48654]
[1735980660918,0.27874,3588.5,3588.4,3.2078]
[1735980663718,0.27874,3588.5,3588.4,3.48654]
[1735980663926,0.27874,3588.5,3588.4,3.2078]
[1735980665822,0.27874,3588.5,3588.4,4.0669]
[1735980671333,0.27874,3588.5,3588.4,4.34565]
[1735980671931,1.8459,3588.6,3588.4,4.0669]
[1735980672335,0.27874,3588.5,3588.4,5.0923941]
[1735980674836,2.12463,3588.6,3588.4,5.3711341]
[1735980675035,0.27874,3588.5,3588.4,5.3711341]
[1735980675342,0.27874,3588.5,3588.4,5.0923941]
[1735980679035,0.27874,3588.5,3588.4,4.0669]
[1735980679539,0.27875,3588.4,3588.3,4.37843562]
[1735980679738,2.18350914,3588.6,3588.3,5.40392972]
[1735980679932,2.18350914,3588.6,3588.5,1.3042341]
[1735980680541,4.77887038,3588.6,3588.5,1.3042341]
[1735980681636,2.18343188,3589.0,3588.5,5.57594156]
[1735980681838,2.18343188,3589.0,3588.9,4.5120041]
[1735980682343,2.18343188,3589.0,3588.9,3.48651]
[1735980682944,2.18343188,3589.3,3588.9,14.33080105]
[1735980683145,2.18343188,3589.3,3589.1,0.27869]
[1735980683345,0.27869,3589.2,3589.0,0.8913]
[1735980683642,2.18343188,3589.3,3589.1,0.27869]
[1735980684347,0.27869,3589.1,3589.0,4.38138402]
[1735980685145,41.07869,3589.1,3589.0,4.38138402]
[1735980685739,0.27873,3588.7,3588.5,3.2078]
[1735980686040,1.20963,3588.6,3588.5,3.2078]
[1735980686542,0.27873,3588.7,3588.5,3.2078]
[1735980687148,2.18294888,3588.6,3588.5,3.2078]
[1735980688146,0.27873,3588.6,3588.5,3.2078]
[1735980688348,2.18294888,3588.7,3588.5,3.2078]
[1735980688349,2.46167888,3588.7,3588.5,3.2078]
[1735980689047,2.18294888,3588.7,3588.6,0.27873]
[1735980689237,2.18294888,3588.7,3588.6,1.19533]
[1735980690941,2.18294888,3588.9,3588.6,5.57671402]
[1735980691144,2.18294888,3588.9,3588.7,0.909]
[1735980691444,2.18294888,3588.9,3588.7,1.18772]
[1735980691841,2.18294888,3588.9,3588.8,0.27872]
[1735980692036,2.18294888,3588.9,3588.7,1.18772]
[1735980692238,3.39254888,3589.0,3588.8,4.38138402]
[1735980692647,3.11384888,3589.0,3588.9,3.2078]
[1735980693343,2.18294888,3589.0,3588.9,3.48651]
[1735980693549,2.18294888,3589.0,3588.9,4.40371]
[1735980694736,2.46160888,3589.5,3588.9,17.88761583]
[1735980695048,2.46160888,3589.5,3589.3,3.48648]
[1735980695246,2.18294888,3589.5,3589.4,0.27867]
[1735980695545,2.18294888,3589.5,3589.4,2.07617]
[1735980696036,0.27865,3589.6,3589.4,13.23447473]
[1735980696247,2.18294888,3589.8,3589.5,0.27865]
[1735980696442,0.27865,3589.6,3589.5,0.27865]
[1735980696945,0.27865,3589.6,3589.4,13.23447473]
[1735980697549,2.18294888,3589.8,3589.4,12.95580473]
[1735980697743,0.27866,3589.6,3589.5,4.3788587]
[1735980699042,0.27868,3589.2,3589.1,4.3788587]
[1735980700246,0.27869,3589.1,3589.0,4.3788587]
[1735980702052,2.6226,3589.4,3589.0,4.3788587]
[1735980702252,2.18294888,3589.3,3589.2,3.2078]
[1735980702448,2.18294888,3589.3,3589.2,3.48648]
[1735980703653,0.27865,3589.7,3589.6,0.27865]
[1735980703654,3.03034888,3589.7,3589.6,0.27865]
[1735980703850,2.18294888,3589.7,3589.6,3.48645]
[1735980704056,3.27475405,3589.8,3589.7,0.27865]
[1735980704351,3.27475405,3589.8,3589.7,3.3201531]
[1735980705656,0.27859,3590.5,3589.7,14.1916304]
[1735980705856,0.27859,3590.5,3590.2,3.4864]
[1735980706259,3.27475405,3590.6,3590.2,3.4864]
[1735980706559,0.27859,3590.4,3590.2,3.4864]
[1735980707060,3.27475405,3590.6,3590.2,3.2078]
[1735980707250,0.27859,3590.4,3590.2,3.4864]
[1735980707560,0.27858,3590.5,3590.3,0.2786]
[1735980707755,0.27858,3590.6,3590.3,0.2786]
[1735980708150,0.8474,3590.7,3590.2,3.2078]
[1735980708486,0.27858,3590.6,3590.3,0.2786]
[1735980710682,0.27859,3590.5,3590.2,3.4864]
[1735980711773,0.2786,3590.3,3590.2,3.2078]
[1735980712666,0.27864,3589.8,3589.7,3.2078]
[1735980713558,4.0801,3590.1,3589.3,4.36990542]
[1735980713762,0.27866,3589.5,3589.3,4.64857542]
[1735980714063,0.8723,3589.4,3589.3,4.64857542]
[1735980714355,0.8723,3589.4,3589.3,4.36990542]
[1735980714553,1.15097,3589.4,3589.3,4.36990542]
[1735980715156,1.15097,3589.4,3589.2,3.48648]
[1735980715958,1.15097,3589.4,3589.3,0.27868]
[1735980716154,1.15097,3589.4,3589.2,3.48648]
[1735980716358,0.8723,3589.4,3589.2,3.2078]
[1735980716562,0.27868,3589.3,3589.2,3.48648]
[1735980716859,0.27867,3589.4,3589.2,3.48648]
[1735980717052,0.27868,3589.3,3589.2,3.48648]
[1735980717454,0.27868,3589.3,3589.2,3.2078]
[1735980717651,0.27868,3589.3,3589.2,3.48648]
[1735980718660,0.8946,3589.7,3589.3,0.27867]
[1735980718862,0.27867,3589.4,3589.3,0.27867]
[1735980719050,0.27867,3589.4,3589.2,3.48648]
[1735980719254,0.8946,3589.7,3589.2,3.48648]
[1735980719453,0.27867,3589.4,3589.2,3.48648]
[1735980721755,0.8946,3589.7,3589.2,3.2078]
[1735980722063,0.27868,3589.3,3589.2,3.2078]
[1735980725967,0.27868,3589.3,3589.2,3.48648]
[1735980726166,0.27868,3589.3,3589.2,3.2078]
[1735980727765,0.27868,3589.3,3589.2,3.48648]
[1735980727968,0.8946,3589.7,3589.2,3.2078]
[1735980728261,0.8946,3589.7,3589.6,0.27865]
[1735980729865,1.17325,3589.7,3589.5,0.27866]
[1735980730675,0.27866,3589.5,3589.4,0.27867]
[1735980731068,0.27866,3589.5,3589.3,0.27867]
[1735980733073,0.27866,3589.5,3589.2,3.2078]
[1735980733074,6.09138715,3590.2,3589.2,3.2078]
[1735980733274,0.27865,3589.6,3589.2,4.084]
[1735980733473,0.27865,3589.6,3589.4,0.27866]
[1735980734175,0.8807,3589.8,3589.2,4.084]
[1735980734373,6.76116405,3590.1,3589.9,0.27863]
[1735980734677,3.27475405,3590.1,3589.9,0.27862]
[1735980734870,3.55336405,3590.1,3589.9,0.27862]
[1735980735188,3.27475405,3590.1,3589.8,0.8834]
[1735980735470,3.27475405,3590.1,3590.0,0.27862]
[1735980735678,3.55336405,3590.1,3590.0,3.2078]
[1735980736071,0.27861,3590.2,3590.0,3.48642]
[1735980736379,0.27858,3590.6,3590.4,0.27859]
[1735980736675,4.19695405,3590.7,3590.0,5.3279031]
[1735980736874,4.19695405,3590.7,3590.6,0.27858]
[1735980737274,6.76111405,3590.9,3590.6,0.27858]
[1735980737475,3.27475405,3590.9,3590.8,0.27856]
[1735980738876,3.2078,3591.4,3590.6,2.1201031]
[1735980738877,0.27854,3591.2,3590.7,0.27857]
[1735980739079,0.27854,3591.1,3590.8,0.27855]
[1735980740269,0.9179,3591.3,3590.6,2.1201031]
[1735980740469,0.27856,3590.9,3590.6,0.27857]
[1735980740677,0.8905,3590.8,3590.6,0.27857]
[1735980741075,0.8905,3590.8,3590.5,7.57770542]
[1735980741283,0.27857,3590.7,3590.5,7.57770542]
[1735980741581,0.27855,3591.0,3590.7,0.27856]
[1735980741782,0.8905,3590.9,3590.7,0.27856]
[1735980741984,0.8905,3590.9,3590.6,2.1201031]
[1735980742278,1.16906,3590.9,3590.6,2.3986731]
[1735980742772,0.8905,3590.9,3590.8,0.27856]
[1735980743281,0.8905,3590.9,3590.7,0.27857]
[1735980743583,1.16906,3590.9,3590.6,2.3986731]
[1735980744271,0.8905,3590.9,3590.6,2.3986731]
[1735980744478,1.16906,3590.9,3590.6,2.3986731]
[1735980744684,1.16906,3590.9,3590.6,2.1201031]
[1735980744885,1.16906,3590.9,3590.7,0.27857]
[1735980746981,0.27856,3590.9,3590.8,0.27856]
[1735980747186,0.27856,3590.9,3590.6,2.1201031]
[1735980747381,0.27855,3591.0,3590.6,2.1201031]
[1735980747585,0.27856,3590.9,3590.7,0.27856]
[1735980748580,0.27856,3590.9,3590.7,0.27857]
[1735980749085,0.8694,3591.1,3590.6,2.1201031]
[1735980749286,2.9895031,3591.1,3590.5,3.2078]
[1735980749487,0.27857,3590.6,3590.5,3.2078]
[1735980749686,2.9895031,3591.1,3590.5,3.48638]
[1735980749987,0.27857,3590.7,3590.5,3.48638]
[1735980750187,1.7554,3590.6,3590.5,3.48638]
[1735980752291,1.7554,3590.6,3590.5,0.27858]
[1735980752492,1.7554,3590.6,3590.5,3.48638]
[1735980753179,2.03397,3590.6,3590.5,3.48638]
[1735980754485,2.03397,3590.6,3590.5,3.2078]
[1735980755991,2.03397,3590.6,3590.1,4.36990542]
[1735980755992,0.27861,3590.2,3590.1,4.36990542]
[1735980756685,4.9632,3590.6,3589.9,0.27863]
[1735980756993,0.27862,3590.1,3589.9,0.27863]
[1735980757190,0.27863,3589.9,3589.7,4.36990542]
[1735980757492,0.27863,3589.9,3589.7,4.64854542]
[1735980757691,0.27864,3589.8,3589.7,4.36990542]
[1735980757886,0.27865,3589.6,3589.5,4.36990542]
[1735980759891,0.9145,3589.9,3589.1,0.27869]
[1735980760092,0.27868,3589.3,3589.1,0.27869]
[1735980760297,1.7984,3589.2,3589.1,0.27869]
[1735980762798,2.07708,3589.2,3589.0,3.2078]
[1735980763099,2.07708,3589.2,3588.9,0.2787]
[1735980763100,0.2787,3589.1,3588.9,0.2787]
[1735980763395,0.2787,3589.0,3588.8,4.64861542]
[1735980763593,0.27871,3589.0,3588.8,4.36990542]
[1735980763789,0.27871,3589.0,3588.8,4.64861542]
[1735980764601,0.27871,3589.0,3588.6,5.3279031]
[1735980764602,1.7984,3589.2,3588.6,5.3279031]
[1735980764801,0.27871,3588.9,3588.7,0.27872]
[1735980765201,1.7984,3589.2,3588.6,5.6066231]
[1735980765405,0.27872,3588.8,3588.6,5.6066231]
[1735980767006,0.27872,3588.8,3588.6,2.3988231]
[1735980767208,0.27872,3588.8,3588.6,5.6066231]
[1735980769101,1.7984,3589.2,3588.6,5.6066231]
[1735980769309,0.27871,3588.8,3588.6,5.6066231]
[1735980769907,0.8903,3588.7,3588.6,5.6066231]
[1735980770208,0.9145,3589.2,3588.6,5.3279031]
[1735980770510,0.9145,3589.2,3588.7,0.9203]
[1735980770709,0.27869,3589.1,3588.9,0.2787]
[1735980771997,1.19319,3589.2,3588.9,0.2787]
[1735980772907,0.27869,3589.2,3588.9,0.2787]
[1735980773099,0.8514,3589.3,3588.9,0.2787]
[1735980773301,0.27868,3589.2,3588.9,0.2787]
[1735980773501,0.2787,3589.0,3588.8,0.27871]